bitfinex/quotes_BTCUSD_20250101
["timestamp","ask_amount","ask_price","bid_price","bid_amount"]
[1735730891355,0.363618,93625.0,93624.0,0.23698632]
[1735730891566,0.363618,93625.0,93624.0,0.23398632]
[1735730891951,0.363618,93625.0,93624.0,0.23798632]
[1735730892381,0.363618,93625.0,93624.0,0.23398632]
[1735730892641,0.363618,93625.0,93624.0,0.23598632]
[1735730893223,0.3637033,93625.0,93624.0,0.23598632]
[1735730898733,0.10230741,93625.0,93624.0,0.23598632]
[1735730899646,0.31592541,93625.0,93624.0,0.23598632]
[1735730917808,0.31592541,93625.0,93624.0,0.23498632]
[1735730918020,0.31592541,93625.0,93624.0,0.23415692]
[1735730918362,0.31592541,93625.0,93624.0,0.23715692]
[1735730918580,0.31592541,93625.0,93624.0,0.23315692]
[1735730918791,0.31592541,93625.0,93624.0,0.23515692]
[1735730919023,0.31592541,93625.0,93624.0,0.23915692]
[1735730924167,0.31592541,93625.0,93624.0,0.23715692]
[1735730924295,0.31592541,93625.0,93624.0,0.23315692]
[1735730924507,0.31592541,93625.0,93624.0,0.23415692]
[1735730924713,0.31592541,93625.0,93624.0,0.23615692]
[1735730924929,0.31592541,93625.0,93624.0,0.23415692]
[1735730925142,0.31592541,93625.0,93624.0,0.23315692]
[1735730925350,0.31592541,93625.0,93624.0,0.23915692]
[1735730925557,0.31592541,93625.0,93624.0,0.23515692]
[1735730925969,0.31592541,93625.0,93624.0,0.23915692]
[1735730926779,0.31592541,93625.0,93624.0,0.23715692]
[1735730927209,0.31592541,93625.0,93624.0,0.23915692]
[1735730933881,0.31592541,93625.0,93624.0,0.23715692]
[1735730934308,0.31592541,93625.0,93624.0,0.23915692]
[1735730934733,0.31592541,93625.0,93624.0,0.23515692]
[1735730935001,0.31592541,93625.0,93624.0,0.23915692]
[1735730938375,0.213616,93626.0,93624.0,0.23915692]
[1735730938793,0.213618,93625.0,93624.0,0.23915692]
[1735730939214,0.213618,93625.0,93624.0,0.23715692]
[1735730939444,0.213618,93625.0,93624.0,0.23315692]
[1735730939670,0.213618,93625.0,93624.0,0.23915692]
[1735730939884,0.213618,93625.0,93624.0,0.23515692]
[1735730940098,0.213618,93625.0,93624.0,0.23315692]
[1735730940313,0.213618,93625.0,93624.0,0.23715692]
[1735730940635,0.213618,93625.0,93624.0,0.23915692]
[1735730941490,0.3637033,93625.0,93624.0,0.23915692]
[1735730947163,0.10602344,93625.0,93624.0,0.23915692]
[1735730947608,0.213618,93625.0,93624.0,0.23915692]
[1735730948805,0.213618,93625.0,93624.0,0.23715692]
[1735730949034,0.213618,93625.0,93624.0,0.23915692]
[1735730949225,0.213618,93625.0,93624.0,0.23515692]
[1735730949451,0.363618,93625.0,93624.0,0.23515692]
[1735730949643,0.363618,93625.0,93624.0,0.23915692]
[1735730953318,0.3637033,93625.0,93624.0,0.23915692]
[1735730954349,0.3637033,93625.0,93624.0,0.11015692]
[1735730955239,0.3637033,93625.0,93624.0,0.10815692]
[1735730955368,0.3637033,93625.0,93624.0,0.10915692]
[1735730956020,0.3637033,93625.0,93624.0,0.10515692]
[1735730956220,0.3637033,93625.0,93624.0,0.10615692]
[1735730959362,0.55649575,93625.0,93624.0,0.10615692]
[1735730968881,0.3637033,93625.0,93624.0,0.10615692]
[1735730972242,0.3637033,93625.0,93624.0,0.10515692]
[1735730972758,0.3637033,93625.0,93624.0,0.23135692]
[1735730972965,0.3637033,93625.0,93624.0,0.23035692]
[1735730973146,0.3637033,93625.0,93624.0,0.23335692]
[1735730973400,0.3637033,93625.0,93624.0,0.23035692]
[1735730973631,0.3637033,93625.0,93624.0,0.23135692]
[1735730973824,0.3637033,93625.0,93624.0,0.23635692]
[1735730974219,0.3637033,93625.0,93624.0,0.23535692]
[1735730974415,0.3637033,93625.0,93624.0,0.23735692]
[1735730977687,8.53e-05,93625.0,93624.0,0.38722403]
[1735730978550,8.53e-05,93625.0,93624.0,0.38522403]
[1735730978739,8.53e-05,93625.0,93624.0,0.38722403]
[1735730978982,8.53e-05,93625.0,93624.0,0.35411272]
[1735730979205,8.53e-05,93625.0,93624.0,0.34711272]
[1735730979406,8.53e-05,93625.0,93624.0,0.35211272]
[1735730979778,8.53e-05,93625.0,93624.0,0.34711272]
[1735730979980,8.53e-05,93625.0,93624.0,0.35611272]
[1735730980730,8.53e-05,93625.0,93624.0,0.36011272]
[1735730984981,8.53e-05,93625.0,93624.0,0.38104507]
[1735730987500,0.00013503,93632.0,93625.0,0.023]
[1735730987717,0.00013503,93632.0,93631.0,0.34784212]
[1735730989532,0.00013503,93632.0,93631.0,0.35384212]
[1735730989743,0.00013503,93632.0,93631.0,0.46682844]
[1735730990606,0.00013503,93632.0,93631.0,0.45182844]
[1735730991041,0.00013503,93632.0,93631.0,0.45782844]
[1735730991687,0.00013503,93632.0,93631.0,0.45182844]
[1735730992298,0.00013503,93632.0,93631.0,0.45882844]
[1735730992514,0.00013503,93632.0,93631.0,0.46782844]
[1735730992734,0.00013503,93632.0,93631.0,0.56782844]
[1735730993354,0.00013503,93632.0,93631.0,0.55882844]
[1735730993816,0.00013503,93632.0,93631.0,0.56082844]
[1735730993994,0.00013503,93632.0,93631.0,0.55982844]
[1735730994358,0.00013503,93632.0,93631.0,0.55182844]
[1735730994764,0.00013503,93632.0,93631.0,0.55982844]
[1735730995290,0.00013503,93632.0,93631.0,0.56882844]
[1735730995534,0.00013503,93632.0,93631.0,0.55982844]
[1735730995922,0.00013503,93632.0,93631.0,0.55182844]
[1735730996489,0.00013503,93632.0,93631.0,0.56082844]
[1735730997197,0.00013503,93632.0,93631.0,0.56882844]
[1735730997893,0.00013503,93632.0,93631.0,0.56082844]
[1735730998353,0.00013503,93632.0,93631.0,0.56882844]
[1735731000363,0.00013503,93632.0,93631.0,0.66882844]
[1735731000598,8.53e-05,93639.0,93633.0,0.6800558]
[1735731000823,8.53e-05,93639.0,93633.0,0.91102844]
[1735731001021,8.53e-05,93639.0,93633.0,0.92831]
[1735731001237,8.53e-05,93639.0,93633.0,0.56541]
[1735731001375,8.53e-05,93639.0,93633.0,0.46142368]
[1735731001752,8.53e-05,93639.0,93633.0,0.21502368]
[1735731001753,0.2136762,93637.0,93633.0,0.21502368]
[1735731001960,0.213593,93636.0,93633.0,0.21502368]
[1735731002167,0.213593,93636.0,93633.0,0.22402368]
[1735731002168,0.15,93635.0,93633.0,0.22402368]
[1735731002371,0.15,93635.0,93633.0,0.10398632]
[1735731002580,0.15,93635.0,93624.0,0.09622311]
[1735731002581,0.363618,93625.0,93624.0,0.09622311]
[1735731002785,0.363618,93625.0,93624.0,0.20020943]
[1735731003419,0.363618,93625.0,93624.0,0.10415692]
[1735731004973,0.363618,93625.0,93624.0,0.10615692]
[1735731005181,0.363618,93625.0,93624.0,0.20391272]
[1735731005400,0.363618,93625.0,93624.0,0.19791272]
[1735731005827,0.363618,93625.0,93624.0,0.19991272]
[1735731006043,0.363618,93625.0,93624.0,0.19891272]
[1735731006269,0.363618,93625.0,93624.0,0.19791272]
[1735731006492,0.363618,93625.0,93624.0,0.20691272]
[1735731006701,0.363618,93625.0,93624.0,0.20191272]
[1735731007132,0.363618,93625.0,93624.0,0.21091272]
[1735731007782,0.363618,93625.0,93624.0,0.20691272]
[1735731008487,0.363618,93625.0,93624.0,0.21091272]
[1735731023012,0.363618,93625.0,93624.0,0.20191272]
[1735731023553,0.363618,93625.0,93624.0,0.21091272]
[1735731024191,0.363618,93625.0,93624.0,0.20691272]
[1735731024651,0.363618,93625.0,93624.0,0.21091272]
[1735731024891,0.363618,93625.0,93624.0,0.20191272]
[1735731025115,0.363618,93625.0,93624.0,0.19791272]
[1735731025331,0.363618,93625.0,93624.0,0.20191272]
[1735731025572,0.363618,93625.0,93624.0,0.21091272]
[1735731026285,0.363618,93625.0,93624.0,0.20191272]
[1735731026502,0.363618,93625.0,93624.0,0.20991272]
[1735731026711,0.363618,93625.0,93624.0,0.20191272]
[1735731027158,0.363618,93625.0,93624.0,0.20591272]
[1735731027593,0.363618,93625.0,93624.0,0.20991272]
[1735731028033,0.363618,93625.0,93624.0,0.20591272]
[1735731028236,0.363618,93625.0,93624.0,0.20791272]
[1735731028445,0.363618,93625.0,93624.0,0.19991272]
[1735731029070,0.363618,93625.0,93624.0,0.19791272]
[1735731029300,0.363618,93625.0,93624.0,0.20291272]
[1735731029511,0.363618,93625.0,93624.0,0.19791272]
[1735731029942,0.363618,93625.0,93624.0,0.20291272]
[1735731030677,0.363618,93625.0,93624.0,0.20491272]
[1735731031085,0.363618,93625.0,93624.0,0.20291272]
[1735731031331,0.363618,93625.0,93624.0,0.20491272]
[1735731047087,0.363618,93625.0,93624.0,0.28771272]
[1735731047993,0.363618,93625.0,93624.0,0.28571272]
[1735731048242,0.363618,93625.0,93624.0,0.28071272]
[1735731048435,0.363618,93625.0,93624.0,0.28971272]
[1735731048777,0.363618,93625.0,93624.0,0.28671272]
[1735731049051,0.363618,93625.0,93624.0,0.29271272]
[1735731051412,0.363618,93625.0,93624.0,0.29571272]
[1735731059252,0.363618,93625.0,93624.0,0.28371272]
[1735731059688,0.363618,93625.0,93624.0,0.28071272]
[1735731060521,0.363618,93625.0,93624.0,0.28971272]
[1735731080384,0.363618,93625.0,93624.0,0.28671272]
[1735731080655,0.363618,93625.0,93624.0,0.28371272]
[1735731081195,0.363618,93625.0,93624.0,0.28971272]
[1735731081423,0.363618,93625.0,93624.0,0.28371272]
[1735731081664,0.15,93626.0,93624.0,0.28971272]
[1735731081864,0.15,93626.0,93625.0,0.10398632]
[1735731083849,0.15,93626.0,93625.0,0.10698632]
[1735731084496,0.15,93626.0,93625.0,0.11298632]
[1735731091351,0.15,93626.0,93625.0,0.10698632]
[1735731091586,0.15,93626.0,93625.0,0.10798632]
[1735731092048,0.15,93626.0,93625.0,0.10998632]
[1735731093201,0.34287394,93626.0,93625.0,0.10998632]
[1735731095644,0.15,93626.0,93625.0,0.10998632]
[1735731096312,0.15,93626.0,93625.0,0.11015692]
[1735731096776,0.1500853,93626.0,93625.0,0.11015692]
[1735731097444,0.1500853,93626.0,93625.0,0.26244551]
[1735731097902,0.1500853,93626.0,93625.0,0.25141272]
[1735731098125,0.1500853,93626.0,93625.0,0.24941272]
[1735731098337,0.1500853,93626.0,93625.0,0.24541272]
[1735731098582,0.1500853,93626.0,93625.0,0.24741272]
[1735731098784,0.1500853,93626.0,93625.0,0.25441272]
[1735731099057,0.1500853,93626.0,93625.0,0.25241272]
[1735731099235,0.1500853,93626.0,93625.0,0.25541272]
[1735731100077,0.1500853,93626.0,93625.0,0.24841272]
[1735731100331,0.1500853,93626.0,93625.0,0.25541272]
[1735731100550,0.1500853,93626.0,93625.0,0.24841272]
[1735731100762,0.1500853,93626.0,93625.0,0.24541272]
[1735731100981,0.1500853,93626.0,93625.0,0.25041272]
[1735731101211,0.1500853,93626.0,93625.0,0.25241272]
[1735731101558,0.1500853,93626.0,93625.0,0.25041272]
[1735731101779,0.1500853,93626.0,93625.0,0.24741272]
[1735731102131,0.1500853,93626.0,93625.0,0.25441272]
[1735731102270,0.1500853,93626.0,93625.0,0.25241272]
[1735731102680,0.1500853,93626.0,93625.0,0.25441272]
[1735731103313,0.1500853,93626.0,93625.0,0.24741272]
[1735731103719,0.1500853,93626.0,93625.0,0.25241272]
[1735731103945,0.1500853,93626.0,93625.0,0.24541272]
[1735731104349,0.1500853,93626.0,93625.0,0.25241272]
[1735731105433,0.1500853,93626.0,93625.0,0.25041272]
[1735731105760,0.1500853,93626.0,93625.0,0.25241272]
[1735731106191,0.1500853,93626.0,93625.0,0.20491272]
[1735731106419,0.1500853,93626.0,93625.0,0.19991272]
[1735731106818,0.1500853,93626.0,93625.0,0.11115692]
[1735731107045,0.1500853,93626.0,93625.0,0.10915692]
[1735731107247,0.1500853,93626.0,93625.0,0.11415692]
[1735731107476,0.1500853,93626.0,93625.0,0.11615692]
[1735731107909,0.1500853,93626.0,93625.0,0.11415692]
[1735731108159,0.1500853,93626.0,93625.0,0.10415692]
[1735731108403,0.1500853,93626.0,93625.0,0.11115692]
[1735731116800,0.213612,93628.0,93625.0,0.11115692]
[1735731117661,0.213614,93627.0,93625.0,0.10415692]
[1735731117878,0.213614,93627.0,93625.0,0.10815692]
[1735731118095,0.213614,93627.0,93625.0,0.11015692]
[1735731119379,0.213614,93627.0,93625.0,0.10615692]
[1735731119784,8.53e-05,93626.0,93625.0,0.10815692]
[1735731120234,8.53e-05,93626.0,93625.0,0.11015692]
[1735731120659,8.53e-05,93626.0,93625.0,0.10815692]
[1735731120924,8.53e-05,93626.0,93625.0,0.10415692]
[1735731121152,8.53e-05,93626.0,93625.0,0.18255692]
[1735731121379,8.53e-05,93626.0,93625.0,0.18755692]
[1735731130941,0.1500853,93626.0,93625.0,0.11115692]
[1735731133526,0.14300919,93626.0,93625.0,0.11115692]
[1735731139578,0.14300919,93626.0,93625.0,0.10415692]
[1735731139750,0.14300919,93626.0,93625.0,0.10915692]
[1735731139960,0.14300919,93626.0,93625.0,0.11115692]
[1735731140168,0.14300919,93626.0,93625.0,0.10615692]
[1735731140375,0.14300919,93626.0,93625.0,0.10915692]
[1735731142071,0.14300919,93626.0,93625.0,0.11115692]
[1735731143433,0.14300919,93626.0,93625.0,0.0071706]
[1735731143654,0.22304556,93626.0,93625.0,0.0051706]
[1735731143873,0.22304556,93626.0,93625.0,0.0001706]
[1735731144099,1.59136856,93626.0,93625.0,0.0011706]
[1735731144326,1.48078456,93626.0,93625.0,0.0021706]
[1735731144506,1.36489456,93626.0,93625.0,0.0021706]
[1735731144705,1.21129356,93626.0,93625.0,0.0021706]
[1735731144922,0.22160919,93626.0,93625.0,0.0021706]
[1735731145159,0.33065219,93626.0,93625.0,0.0021706]
[1735731145363,0.22160919,93626.0,93625.0,0.0021706]
[1735731145930,0.22169449,93626.0,93625.0,0.0021706]
[1735731146798,0.46268851,93626.0,93625.0,0.0021706]
[1735731147431,0.57203651,93626.0,93625.0,0.0021706]
[1735731147659,0.32694249,93626.0,93625.0,0.0021706]
[1735731147867,0.51630849,93626.0,93625.0,0.0021706]
[1735731148082,0.38864549,93626.0,93625.0,0.0021706]
[1735731148287,0.37994549,93626.0,93625.0,0.0021706]
[1735731148507,0.37994549,93626.0,93624.0,0.0001706]
[1735731148508,0.3698622,93625.0,93624.0,2e-07]
[1735731151568,0.3708622,93625.0,93624.0,2e-07]
[1735731155542,0.61154035,93625.0,93624.0,2e-07]
[1735731156955,0.61162565,93625.0,93624.0,2e-07]
[1735731158096,0.3709475,93625.0,93624.0,2e-07]
[1735731158576,0.27957695,93625.0,93624.0,2e-07]
[1735731158794,0.1573295,93625.0,93624.0,2e-07]
[1735731159021,0.39800765,93625.0,93624.0,2e-07]
[1735731159296,0.60538145,93625.0,93624.0,2e-07]
[1735731160137,0.3647033,93625.0,93624.0,2e-07]
[1735731161002,0.55715419,93625.0,93624.0,2e-07]
[1735731161209,0.55615419,93625.0,93624.0,2e-07]
[1735731161634,0.55715419,93625.0,93624.0,2e-07]
[1735731162159,0.55615419,93625.0,93624.0,2e-07]
[1735731166057,0.55715419,93625.0,93624.0,2e-07]
[1735731167375,0.55615419,93625.0,93624.0,2e-07]
[1735731169555,0.55207544,93625.0,93624.0,2e-07]
[1735731170556,0.35962455,93625.0,93624.0,2e-07]
[1735731170797,0.36062455,93625.0,93624.0,2e-07]
[1735731171331,0.35962455,93625.0,93624.0,0.10398652]
[1735731171571,0.36062455,93625.0,93624.0,0.15268652]
[1735731172293,0.35962455,93625.0,93624.0,0.15268652]
[1735731172900,0.35962455,93625.0,93624.0,0.15468652]
[1735731173599,0.35962455,93625.0,93624.0,0.15568652]
[1735731173970,0.35962455,93625.0,93624.0,0.15468652]
[1735731174416,0.35962455,93625.0,93624.0,0.15568652]
[1735731176260,0.35962455,93625.0,93624.0,0.18859079]
[1735731177765,0.35962455,93625.0,93624.0,0.15268652]
[1735731178178,0.35962455,93625.0,93624.0,0.15868652]
[1735731178562,0.35962455,93625.0,93624.0,0.15768652]
[1735731179880,0.35962455,93625.0,93624.0,0.15968652]
[1735731181011,0.35962455,93625.0,93624.0,0.15268652]
[1735731181251,0.35962455,93625.0,93624.0,0.15468652]
[1735731181440,0.35962455,93625.0,93624.0,0.16068652]
[1735731187068,0.35962455,93625.0,93624.0,0.23658652]
[1735731192677,0.35962455,93625.0,93624.0,0.23458652]
[1735731192909,0.35962455,93625.0,93624.0,0.22858652]
[1735731193220,0.35962455,93625.0,93624.0,0.23258652]
[1735731193462,0.35962455,93625.0,93624.0,0.22858652]
[1735731193788,0.35962455,93625.0,93624.0,0.23058652]
[1735731194266,0.35962455,93625.0,93624.0,0.26302079]
[1735731194523,0.35962455,93625.0,93624.0,0.23058652]
[1735731194777,0.35962455,93625.0,93624.0,0.23558652]
[1735731195254,0.35962455,93625.0,93624.0,0.23058652]
[1735731195486,0.35962455,93625.0,93624.0,0.23358652]
[1735731195730,0.35962455,93625.0,93624.0,0.23058652]
[1735731195941,0.35962455,93625.0,93624.0,0.23358652]
[1735731196173,0.35962455,93625.0,93624.0,0.23458652]
[1735731196638,0.35962455,93625.0,93624.0,0.23358652]
[1735731196874,0.35962455,93625.0,93624.0,0.23558652]
[1735731204282,0.35962455,93625.0,93624.0,0.11098652]
[1735731204288,0.35962455,93625.0,93624.0,0.0070002]
[1735731204519,0.35980333,93625.0,93624.0,0.0070002]
[1735731205004,0.35980333,93625.0,93624.0,0.0050002]
[1735731205483,0.35980333,93625.0,93624.0,0.0010002]
[1735731205947,0.35980333,93625.0,93624.0,0.0030002]
[1735731206178,0.35980333,93625.0,93624.0,2e-07]
[1735731206676,0.35962455,93625.0,93624.0,2e-07]
[1735731212225,0.38262455,93625.0,93624.0,2e-07]
[1735731214170,0.38886875,93625.0,93624.0,2e-07]
[1735731218734,0.38262455,93625.0,93624.0,2e-07]
[1735731219372,0.38886875,93625.0,93624.0,2e-07]
[1735731219620,0.38262455,93625.0,93624.0,2e-07]
[1735731220132,0.38886875,93625.0,93624.0,2e-07]
[1735731220370,0.38262455,93625.0,93624.0,2e-07]
[1735731221796,0.38886875,93625.0,93624.0,2e-07]
[1735731223898,0.38262455,93625.0,93624.0,2e-07]
[1735731230948,0.023,93625.0,93624.0,2e-07]
[1735731231830,0.236618,93625.0,93624.0,2e-07]
[1735731233519,0.386618,93625.0,93624.0,2e-07]
[1735731238363,0.62720796,93625.0,93624.0,2e-07]
[1735731238591,0.62729326,93625.0,93624.0,2e-07]
[1735731240931,0.37193446,93625.0,93624.0,2e-07]
[1735731241833,0.58555246,93625.0,93624.0,2e-07]
[1735731242905,0.3449625,93625.0,93624.0,2e-07]
[1735731245048,0.55364882,93625.0,93624.0,2e-07]
[1735731245266,0.55989302,93625.0,93624.0,2e-07]
[1735731245477,0.65989272,93625.0,93624.0,2e-07]
[1735731246989,0.66189272,93625.0,93624.0,2e-07]
[1735731248032,0.48105644,93625.0,93624.0,2e-07]
[1735731250460,0.63114174,93625.0,93624.0,2e-07]
[1735731253770,0.213663,93605.0,93604.0,0.07433298]
[1735731254061,0.363663,93605.0,93604.0,0.0748368]
[1735731255585,0.863663,93605.0,93604.0,0.0758368]
[1735731256022,0.863663,93605.0,93604.0,0.1278368]
[1735731256245,0.863663,93605.0,93604.0,0.23182312]
[1735731261687,0.363663,93605.0,93604.0,0.23182312]
[1735731262692,0.363663,93605.0,93604.0,0.23199372]
[1735731262906,0.213663,93605.0,93604.0,0.32574952]
[1735731263105,0.213663,93605.0,93604.0,0.35832447]
[1735731263991,0.213663,93605.0,93604.0,0.32274952]
[1735731264213,0.213663,93605.0,93604.0,0.32574952]
[1735731264408,0.363663,93605.0,93604.0,0.32274952]
[1735731264772,0.363663,93605.0,93604.0,0.32674952]
[1735731265231,0.363663,93605.0,93604.0,0.32574952]
[1735731265818,0.363663,93605.0,93604.0,0.32674952]
[1735731266019,0.363663,93605.0,93604.0,0.32274952]
[1735731266374,0.363663,93605.0,93604.0,0.32174952]
[1735731266822,0.363663,93605.0,93604.0,0.32574952]
[1735731267161,0.363663,93605.0,93604.0,0.32174952]
[1735731267568,0.363663,93605.0,93604.0,0.32574952]
[1735731267912,0.363663,93605.0,93604.0,0.32774952]
[1735731268468,0.363663,93605.0,93604.0,0.32574952]
[1735731268677,0.363663,93605.0,93604.0,0.32774952]
[1735731269359,0.363663,93605.0,93604.0,0.32974952]
[1735731269593,0.363663,93605.0,93604.0,0.32374952]
[1735731269826,0.363663,93605.0,93604.0,0.32774952]
[1735731272104,0.363663,93605.0,93604.0,0.32574952]
[1735731272339,0.363663,93605.0,93604.0,0.32274952]
[1735731272587,0.21366,93607.0,93606.0,0.0937558]
[1735731272820,0.21366,93607.0,93606.0,0.19774212]
[1735731273055,0.21366,93607.0,93606.0,0.32184212]
[1735731273544,0.36366,93607.0,93606.0,0.35409377]
[1735731273778,0.36366,93607.0,93606.0,0.36309377]
[1735731274259,0.36366,93607.0,93606.0,0.33084212]
[1735731275256,0.36366,93607.0,93606.0,0.33384212]
[1735731276220,0.36366,93607.0,93606.0,0.33084212]
[1735731278067,0.36366,93607.0,93606.0,0.33384212]
[1735731278511,0.36366,93607.0,93606.0,0.33084212]
[1735731278762,0.36366,93607.0,93606.0,0.33384212]
[1735731289036,0.36366,93607.0,93606.0,0.36729377]
[1735731289261,0.36366,93607.0,93606.0,0.33384212]
[1735731295065,0.36154602,93607.0,93606.0,0.33384212]
[1735731297620,0.36154602,93607.0,93606.0,0.33401272]
[1735731301537,0.36154602,93607.0,93606.0,0.25691272]
[1735731302791,0.36340037,93607.0,93606.0,0.0121706]
[1735731303231,0.36154602,93607.0,93606.0,0.0121706]
[1735731303652,0.36154602,93607.0,93606.0,0.0031706]
[1735731304290,0.36154602,93607.0,93606.0,0.0001706]
[1735731304802,0.55432102,93607.0,93606.0,0.0001706]
[1735731305443,0.2410275,93609.0,93606.0,0.0001706]
[1735731305876,0.2410275,93609.0,93606.0,0.0011706]
[1735731306562,0.40640837,93612.0,93606.0,0.0001706]
[1735731306771,0.21366,93607.0,93606.0,0.0001706]
[1735731307731,0.36366,93607.0,93606.0,0.0001706]
[1735731309626,0.15,93608.0,93606.0,0.0001706]
[1735731310422,0.15,93608.0,93606.0,0.0011706]
[1735731310643,0.21366,93607.0,93606.0,0.0011706]
[1735731310783,0.21366,93607.0,93606.0,0.0001706]
[1735731311630,0.24366,93607.0,93606.0,0.0001706]
[1735731312486,0.24366,93607.0,93606.0,0.10415692]
[1735731313311,0.24366,93607.0,93606.0,0.10515692]
[1735731319357,0.39366,93607.0,93606.0,0.10515692]
[1735731322937,0.3937453,93607.0,93606.0,0.10515692]
[1735731326146,0.3937453,93607.0,93606.0,0.0011706]
[1735731326408,0.243663,93605.0,93604.0,2e-08]
[1735731326655,0.393663,93605.0,93604.0,2e-08]
[1735731327885,0.393663,93605.0,93604.0,0.00100002]
[1735731328332,1.187603,93605.0,93604.0,0.00200002]
[1735731328752,1.169919,93605.0,93604.0,0.00200002]
[1735731328979,1.169919,93605.0,93604.0,0.00100002]
[1735731329197,0.90074506,93605.0,93604.0,0.00100002]
[1735731329441,0.90074506,93605.0,93604.0,2e-08]
[1735731329559,0.243663,93605.0,93604.0,2e-08]
[1735731330197,0.43625018,93605.0,93604.0,2e-08]
[1735731330845,0.243663,93605.0,93604.0,2e-08]
[1735731332073,0.393663,93605.0,93604.0,2e-08]
[1735731338455,0.393663,93605.0,93604.0,0.13398634]
[1735731340830,0.393663,93605.0,93604.0,0.13998634]
[1735731341068,0.393663,93605.0,93604.0,0.13598634]
[1735731341289,0.393663,93605.0,93604.0,0.13898634]
[1735731342497,0.393663,93605.0,93604.0,0.13698634]
[1735731342732,0.393663,93605.0,93604.0,0.13798634]
[1735731346321,0.3937483,93605.0,93604.0,0.13798634]
[1735731348881,0.58626582,93605.0,93604.0,0.13798634]
[1735731349540,0.22260282,93605.0,93604.0,0.13798634]
[1735731349743,0.43626582,93605.0,93604.0,0.13798634]
[1735731350568,0.2437483,93605.0,93604.0,0.13798634]
[1735731353343,0.3937483,93605.0,93604.0,0.13698634]
[1735731353699,0.3937483,93605.0,93604.0,0.13398634]
[1735731353899,0.3937483,93605.0,93604.0,0.13698634]
[1735731356195,0.3937483,93605.0,93604.0,0.13798634]
[1735731363762,0.3937483,93605.0,93604.0,0.12390905]
[1735731364010,0.3937483,93605.0,93604.0,0.10798632]
[1735731364262,0.3937483,93605.0,93604.0,0.13798632]
[1735731364495,0.18,93604.0,93603.0,0.0785]
[1735731364753,0.18,93604.0,93603.0,0.18263838]
[1735731365255,0.18,93604.0,93603.0,0.21263838]
[1735731365772,0.18,93602.0,93596.0,0.0001706]
[1735731366010,0.18,93602.0,93596.0,0.000677]
[1735731366463,0.363682,93597.0,93596.0,0.000677]
[1735731366696,0.393682,93597.0,93596.0,0.000677]
[1735731367648,0.393682,93597.0,93596.0,0.004677]
[1735731368070,0.393682,93597.0,93596.0,0.006677]
[1735731368500,0.393682,93597.0,93596.0,0.004677]
[1735731368981,0.393682,93597.0,93596.0,0.002677]
[1735731369171,0.393682,93597.0,93596.0,0.008677]
[1735731369451,0.393682,93597.0,93596.0,0.002677]
[1735731369935,0.393682,93597.0,93580.0,0.0001706]
[1735731369936,0.393716,93582.0,93580.0,0.0001706]
[1735731370424,0.393716,93582.0,93581.0,0.00032243]
[1735731371888,0.393716,93582.0,93581.0,0.00432243]
[1735731372525,0.394716,93582.0,93581.0,0.01332243]
[1735731372778,0.394716,93582.0,93581.0,0.00432243]
[1735731372779,0.393716,93582.0,93581.0,0.00432243]
[1735731373208,0.394716,93582.0,93581.0,0.01332243]
[1735731376922,0.031,93582.0,93581.0,0.01332243]
[1735731377778,0.244716,93582.0,93581.0,0.01332243]
[1735731378460,0.16696375,93584.0,93582.0,0.01731028]
[1735731378713,0.213714,93583.0,93582.0,0.01731028]
[1735731379766,0.213714,93583.0,93582.0,0.02631028]
[1735731379918,0.213714,93583.0,93582.0,0.01731028]
[1735731380360,0.214714,93583.0,93582.0,0.03031028]
[1735731380767,0.214714,93583.0,93582.0,0.02631028]
[1735731381352,0.214714,93583.0,93582.0,0.03031028]
[1735731381990,0.364714,93583.0,93582.0,0.03031028]
[1735731383285,0.364714,93583.0,93582.0,0.10971028]
[1735731392514,0.3647993,93583.0,93582.0,0.10971028]
[1735731395683,0.3647993,93583.0,93582.0,0.1224]
[1735731403308,0.08937969,93583.0,93582.0,0.1224]
[1735731403792,0.2137993,93583.0,93582.0,0.1225706]
[1735731406974,0.3637993,93583.0,93582.0,0.1225706]
[1735731415960,0.55657317,93583.0,93582.0,0.1225706]
[1735731417578,0.3637993,93583.0,93582.0,0.1225706]
[1735731424646,0.3637993,93583.0,93582.0,0.0431706]
[1735731425103,0.55676154,93583.0,93582.0,0.0431706]
[1735731425980,0.3637993,93583.0,93582.0,0.0431706]
[1735731427764,0.0546761,93583.0,93582.0,0.0431706]
[1735731427982,0.35993643,93584.0,93582.0,0.0431706]
[1735731428420,0.213714,93583.0,93582.0,0.0431706]
[1735731428853,0.213714,93583.0,93582.0,0.0391706]
[1735731429250,0.213714,93583.0,93582.0,0.0431706]
[1735731429700,0.213714,93583.0,93582.0,0.0391706]
[1735731430191,0.213714,93583.0,93582.0,0.0431706]
[1735731430411,0.213714,93583.0,93582.0,0.0341706]
[1735731430648,0.213714,93583.0,93582.0,0.0431706]
[1735731430866,0.213714,93583.0,93582.0,0.0341706]
[1735731431204,0.214714,93583.0,93582.0,0.0431706]
[1735731432532,0.213705,93587.0,93582.0,0.0431706]
[1735731432744,0.213714,93583.0,93582.0,0.0431706]
[1735731433507,0.213714,93583.0,93582.0,0.0301706]
[1735731433870,0.213714,93583.0,93582.0,0.0391706]
[1735731434107,0.213714,93583.0,93582.0,0.0301706]
[1735731434311,0.214714,93583.0,93582.0,0.0391706]
[1735731435389,0.214714,93583.0,93582.0,0.0421706]
[1735731435810,0.214714,93583.0,93582.0,0.0391706]
[1735731436268,0.364714,93583.0,93582.0,0.0431706]
[1735731436482,0.439914,93583.0,93582.0,0.0431706]
[1735731437795,0.364714,93583.0,93582.0,0.0431706]
[1735731439458,0.3647993,93583.0,93582.0,0.0431706]
[1735731442131,0.2147993,93583.0,93582.0,0.1229706]
[1735731442349,0.2147993,93583.0,93582.0,0.22695692]
[1735731443014,0.3647993,93583.0,93582.0,0.22695692]
[1735731444513,0.0010853,93583.0,93582.0,0.36771272]
[1735731445231,0.0010853,93583.0,93582.0,0.36371272]
[1735731445433,0.0010853,93583.0,93582.0,0.40415036]
[1735731445846,0.0010853,93583.0,93582.0,0.40015036]
[1735731446041,0.0010853,93583.0,93582.0,0.39115036]
[1735731446271,8.53e-05,93583.0,93582.0,0.39515036]
[1735731446449,8.53e-05,93583.0,93582.0,0.40415036]
[1735731446658,8.53e-05,93583.0,93582.0,0.39515036]
[1735731446875,8.53e-05,93583.0,93582.0,0.39115036]
[1735731447080,8.53e-05,93583.0,93582.0,0.40015036]
[1735731447841,8.53e-05,93583.0,93582.0,0.39115036]
[1735731448310,8.53e-05,93583.0,93582.0,0.40315036]
[1735731449458,8.53e-05,93583.0,93582.0,0.39115036]
[1735731450174,8.53e-05,93583.0,93582.0,0.40015036]
[1735731450403,8.53e-05,93583.0,93582.0,0.40315036]
[1735731450623,8.53e-05,93583.0,93582.0,0.39415036]